[Event "IX Iberoamericano Championship 2023"]
[Site "Panama City"]
[Date "2023.11.27"]
[Round "3.6"]
[White "Rodriguez Vila, Andres"]
[Black "Berdayes Ason, Dylan Isidro"]
[Result "1/2-1/2"]
[ECO "B40"]
[WhiteElo "2405"]
[BlackElo "2507"]
[Annotator "RC"]
[PlyCount "92"]
[EventDate "2023.11.27"]
[EventType "swiss"]
[EventCountry "PAN"]
[SourceTitle "playchess.com"]
[Source "ChessBase"]
[SourceQuality "1"]
[TimeControl "5400+30"]

1. e4 {[%emt 0:00:48]} c5 {[%emt 0:00:05]} 2. Nc3 {[%emt 0:00:20]} e6 {[%emt 0:00:06]} 3. Nf3 {[%emt 0:00:22]} Nc6 {[%emt 0:00:03]} 4. g3 {[%emt 0:01:50]} d5 {[%emt 0:01:26]} 5. Bg2 {[%emt 0:00:10]} d4 {[%emt 0:03:16]} 6. Ne2 {[%emt 0:00:05]} e5 {[%emt 0:01:05]} 7. d3 {[%emt 0:00:09]} Be7 {[%emt 0:00:26]} 8. O-O {[%emt 0:00:13]} h5 {[%emt 0:00:09]} 9. h3 {[%emt 0:17:23]} h4 {[%emt 0:02:01]} 10. g4 {[%emt 0:00:26]} Be6 {[%emt 0:00:57]} 11. c3 {[%emt 0:01:20]} f6 {[%emt 0:05:24]} 12. b4 {[%emt 0:03:11]} b6 {[%emt 0:03:40]} 13. bxc5 {[%emt 0:00:30]} bxc5 {[%emt 0:00:30]} 14. cxd4 {[%emt 0:08:56]} cxd4 {[%emt 0:00:00]} 15. Qa4 {[%emt 0:00:30]} Bd7 {[%emt 0:00:04]} 16. Bd2 {[%emt 0:00:30]} g5 {[%emt 0:00:30]} 17. Rfc1 {[%emt 0:00:30]} Rc8 {[%emt 0:00:30]} 18. Rc4 {[%emt 0:00:30]} Nh6 {[%emt 0:00:30]} 19. Rac1 {[%emt 0:00:30]} Qb6 {[%emt 0:00:30]} 20. Qd1 {[%emt 0:00:30]} Nf7 {[%emt 0:00:30]} 21. Rb1 {[%emt 0:00:30]} Qd8 {[%emt 0:00:30]} 22. Nc1 {[%emt 0:00:30]} O-O {[%emt 0:00:30]} 23. Nb3 {[%emt 0:00:30]} Be6 {[%emt 0:00:30]} 24. Rc2 {[%emt 0:00:30]} Qd7 {[%emt 0:00:30]} 25. Ne1 {[%emt 0:00:30]} Nb4 {[%emt 0:00:30]} 26. Rcb2 {[%emt 0:00:30]} Na6 {[%emt 0:00:30]} 27. Nc2 {[%emt 0:00:30]} Rb8 {[%emt 0:00:30]} 28. Na5 {[%emt 0:00:30]} Qa4 {[%emt 0:00:30]} 29. Rxb8 {[%emt 0:00:30]} Rxb8 {[%emt 0:00:30]} 30. Rxb8+ {[%emt 0:00:30]} Nxb8 {[%emt 0:00:30]} 31. Qb1 {[%emt 0:00:30]} Nd7 {[%emt 0:00:30]} 32. Nc4 {[%emt 0:00:30]} Nd6 {[%emt 0:00:30]} 33. N2a3 {[%emt 0:00:30]} Nb6 {[%emt 0:00:30]} 34. Nxb6 {[%emt 0:00:30]} axb6 {[%emt 0:00:30]} 35. Bb4 {[%emt 0:00:30]} Kf7 {[%emt 0:00:30]} 36. Bxd6 {[%emt 0:00:30]} Bxd6 {[%emt 0:56:40]} 37. Nc4 {[%emt 0:38:23]} Bc5 {[%emt 0:23:08]} 38. Nxb6 {[%emt 0:02:19]} Qxa2 {[%emt 0:00:00]} 39. Qxa2 {[%emt 0:01:25]} Bxa2 {[%emt 0:00:00]} 40. Nd5 {[%emt 0:00:08]} Bb1 {[%emt 0:00:00]} 41. Bf1 {[%emt 0:00:11]} Ba3 {[%emt 0:00:00]} 42. Kg2 {[%emt 0:02:46]} Bc1 {[%emt 0:00:00]} 43. Kf3 {[%emt 0:00:16]} Bd2 {[%emt 0:00:00]} 44. Ke2 {[%emt 0:00:29]} Ba5 {[%emt 0:00:00]} 45. Kd1 {[%emt 0:00:42]} Ba2 {[%emt 0:00:00]} 46. Kc2 {[%emt 0:00:20]} Bxd5 {[%emt 0:00:00]} 1/2-1/2

[Event "IX Iberoamericano Championship 2023"]
[Site "Panama City"]
[Date "2023.11.27"]
[Round "3.7"]
[White "Cuenca Jimenez, Jose Fernando"]
[Black "Ortiz Verdezoto, Anahi"]
[Result "1/2-1/2"]
[ECO "E15"]
[WhiteElo "2505"]
[BlackElo "2175"]
[Annotator "RC"]
[PlyCount "149"]
[EventDate "2023.11.27"]
[EventType "swiss"]
[EventCountry "PAN"]
[SourceTitle "playchess.com"]
[Source "ChessBase"]
[SourceQuality "1"]
[TimeControl "5400+30"]

1. d4 {[%emt 0:03:40]} Nf6 {[%emt 0:00:06]} 2. c4 {[%emt 0:00:18]} e6 {[%emt 0:00:28]} 3. Nf3 {[%emt 0:00:15]} b6 {[%emt 0:00:14]} 4. g3 {[%emt 0:00:05]} Ba6 {[%emt 0:00:43]} 5. b3 {[%emt 0:00:07]} Bb7 {[%emt 0:00:48]} 6. Bg2 {[%emt 0:00:26]} Bb4+ {[%emt 0:00:10]} 7. Bd2 {[%emt 0:00:06]} a5 {[%emt 0:00:08]} 8. a3 {[%emt 0:00:40]} Bxd2+ {[%emt 0:08:39]} 9. Qxd2 {[%emt 0:00:14]} O-O {[%emt 0:00:43]} 10. O-O {[%emt 0:00:14]} d6 {[%emt 0:01:30]} 11. Qc2 {[%emt 0:00:40]} c5 {[%emt 0:04:24]} 12. Rd1 {[%emt 0:25:31]} cxd4 {[%emt 0:09:54]} 13. Rxd4 {[%emt 0:00:33]} Qe7 {[%emt 0:00:17]} 14. Nc3 {[%emt 0:02:51]} Na6 {[%emt 0:23:44]} 15. Ng5 {[%emt 0:13:05]} Bxg2 {[%emt 0:14:37]} 16. Kxg2 {[%emt 0:00:14]} h6 {[%emt 0:02:25]} 17. Nge4 {[%emt 0:09:40]} d5 {[%emt 0:12:42]} 18. cxd5 {[%emt 0:03:10]} exd5 {[%emt 0:03:29]} 19. Nxf6+ {[%emt 0:06:20]} Qxf6 {[%emt 0:00:02]} 20. Rad1 {[%emt 0:00:08]} Nc7 {[%emt 0:03:15]} 21. Nxd5 {[%emt 0:05:20]} Nxd5 {[%emt 0:00:05]} 22. Rxd5 {[%emt 0:00:01]} Rac8 {[%emt 0:00:59]} 23. Qd3 {[%emt 0:01:46]} Qb2 {[%emt 0:02:46]} 24. a4 {[%emt 0:07:58]} Rc3 {[%emt 0:06:02]} 25. Qe4 {[%emt 0:02:16]} Qxb3 {[%emt 0:03:24]} 26. R1d4 {[%emt 0:06:53]} Rcc8 {[%emt 0:01:20]} 27. Rb5 {[%emt 0:00:48]} Qa2 {[%emt 0:00:02]} 28. Qf3 {[%emt 0:06:23]} Rce8 {[%emt 0:00:58]} 29. e3 {[%emt 0:02:08]} Re6 {[%emt 0:00:03]} 30. Rf5 {[%emt 0:00:31]} Re7 {[%emt 0:00:56]} 31. g4 {[%emt 0:03:39]} Rfe8 {[%emt 0:00:06]} 32. Qd5 {[%emt 0:00:00]} Qxd5+ {[%emt 0:00:56]} 33. Rfxd5 {[%emt 0:00:00]} Rc7 {[%emt 0:00:32]} 34. Kf3 {[%emt 0:00:13]} Re6 {[%emt 0:00:26]} 35. h4 {[%emt 0:00:35]} Rec6 {[%emt 0:00:33]} 36. h5 {[%emt 0:00:28]} g6 {[%emt 0:00:06]} 37. hxg6 {[%emt 0:00:22]} Rxg6 {[%emt 0:00:48]} 38. Kg3 {[%emt 0:00:10]} Rc3 {[%emt 0:00:36]} 39. Rf4 {[%emt 0:01:13]} Rc7 {[%emt 0:00:27]} 40. Re4 {[%emt 0:00:43]} Kg7 {[%emt 0:00:28]} 41. Red4 {[%emt 0:00:33]} Rc3 {[%emt 0:00:35]} 42. Rf4 {[%emt 0:00:18]} Rc7 {[%emt 0:00:04]} 43. Kh4 {[%emt 0:00:33]} Rgc6 {[%emt 0:00:50]} 44. Rdf5 {[%emt 0:00:22]} Rc4 {[%emt 0:00:35]} 45. Rxf7+ {[%emt 0:00:49]} Rxf7 {[%emt 0:00:04]} 46. Rxc4 {[%emt 0:00:02]} Rxf2 {[%emt 0:00:16]} 47. Rc7+ {[%emt 0:00:22]} Kg8 {[%emt 0:00:59]} 48. Rc6 {[%emt 0:00:34]} Rh2+ {[%emt 0:00:42]} 49. Kg3 {[%emt 0:00:04]} Ra2 {[%emt 0:00:26]} 50. Rxh6 {[%emt 0:00:16]} Rxa4 {[%emt 0:00:22]} 51. Rxb6 {[%emt 0:00:01]} Kg7 {[%emt 0:00:34]} 52. Ra6 {[%emt 0:00:21]} Ra1 {[%emt 0:00:39]} 53. Kf4 {[%emt 0:00:53]} a4 {[%emt 0:00:06]} 54. e4 {[%emt 0:00:34]} a3 {[%emt 0:00:17]} 55. Kg5 {[%emt 0:00:05]} a2 {[%emt 0:00:28]} 56. Ra7+ {[%emt 0:00:03]} Kf8 {[%emt 0:00:15]} 57. Kg6 {[%emt 0:01:50]} Rg1 {[%emt 0:01:20]} 58. Rxa2 {[%emt 0:00:08]} Rxg4+ {[%emt 0:00:02]} 59. Kf5 {[%emt 0:00:04]} Rh4 {[%emt 0:01:01]} 60. Ra8+ {[%emt 0:01:31]} Ke7 {[%emt 0:00:17]} 61. Ra7+ {[%emt 0:00:02]} Ke8 {[%emt 0:00:19]} 62. e5 {[%emt 0:00:52]} Rh6 {[%emt 0:00:29]} 63. Rg7 {[%emt 0:00:08]} Ra6 {[%emt 0:00:25]} 64. Rh7 {[%emt 0:00:04]} Rb6 {[%emt 0:00:18]} 65. Rh2 {[%emt 0:00:31]} Ra6 {[%emt 0:00:06]} 66. Rd2 {[%emt 0:00:44]} Rc6 {[%emt 0:00:44]} 67. Kg5 {[%emt 0:00:09]} Rb6 {[%emt 0:00:06]} 68. Rf2 {[%emt 0:00:04]} Ke7 {[%emt 0:00:17]} 69. Kf5 {[%emt 0:00:30]} Ra6 {[%emt 0:00:06]} 70. Rb2 {[%emt 0:00:21]} Rc6 {[%emt 0:00:13]} 71. Rb7+ {[%emt 0:00:09]} Ke8 {[%emt 0:00:01]} 72. Ke4 {[%emt 0:00:05]} Ra6 {[%emt 0:01:00]} 73. Kd5 {[%emt 0:00:07]} Rh6 {[%emt 0:00:11]} 74. e6 {[%emt 0:00:16]} Rh1 {[%emt 0:00:11]} 75. Rb8+ {[%emt 0:00:03]} 1/2-1/2

[Event "IX Iberoamericano Championship 2023"]
[Site "Panama City"]
[Date "2023.11.27"]
[Round "3.8"]
[White "Ynojosa Aponte, Felix Jose"]
[Black "Miranda Mesa, Elier"]
[Result "1/2-1/2"]
[ECO "B10"]
[WhiteElo "2393"]
[BlackElo "2490"]
[Annotator "RC"]
[PlyCount "53"]
[EventDate "2023.11.27"]
[EventType "swiss"]
[EventCountry "PAN"]
[SourceTitle "playchess.com"]
[Source "ChessBase"]
[SourceQuality "1"]
[TimeControl "5400+30"]

1. e4 {[%emt 0:03:12]} c6 {[%emt 0:02:07]} 2. c4 {[%emt 0:00:04]} d5 {[%emt 0:00:08]} 3. cxd5 {[%emt 0:00:03]} cxd5 {[%emt 0:00:08]} 4. exd5 {[%emt 0:00:02]} Nf6 {[%emt 0:00:11]} 5. Bb5+ {[%emt 0:00:04]} Nbd7 {[%emt 0:02:07]} 6. Nc3 {[%emt 0:00:02]} a6 {[%emt 0:00:22]} 7. Bxd7+ {[%emt 0:00:05]} Qxd7 {[%emt 0:01:40]} 8. Qb3 {[%emt 0:00:04]} Qg4 {[%emt 0:02:08]} 9. Kf1 {[%emt 0:00:18]} b5 {[%emt 0:06:11]} 10. Nf3 {[%emt 0:01:11]} e6 {[%emt 0:01:53]} 11. d4 {[%emt 0:01:59]} Qf5 {[%emt 0:01:23]} 12. Bg5 {[%emt 0:10:11]} Nxd5 {[%emt 0:05:10]} 13. Nxd5 {[%emt 0:03:08]} Qxd5 {[%emt 0:03:53]} 14. Qxd5 {[%emt 0:00:05]} exd5 {[%emt 0:00:05]} 15. Nd2 {[%emt 0:04:43]} Bd6 {[%emt 0:13:38]} 16. f3 {[%emt 0:00:28]} Bf5 {[%emt 0:02:15]} 17. Kf2 {[%emt 0:00:50]} Rc8 {[%emt 0:02:35]} 18. Rac1 {[%emt 0:00:02]} Kd7 {[%emt 0:00:49]} 19. Nb3 {[%emt 0:03:13]} Rc4 {[%emt 0:02:46]} 20. Nc5+ {[%emt 0:01:22]} Bxc5 {[%emt 0:08:27]} 21. dxc5 {[%emt 0:00:03]} Kc6 {[%emt 0:03:19]} 22. b3 {[%emt 0:06:48]} Rxc5 {[%emt 0:04:38]} 23. Be3 {[%emt 0:00:05]} Rxc1 {[%emt 0:00:13]} 24. Rxc1+ {[%emt 0:00:01]} Kd7 {[%emt 0:03:00]} 25. Bf4 {[%emt 0:04:01]} Rc8 {[%emt 0:05:42]} 26. Rxc8 {[%emt 0:00:04]} Kxc8 {[%emt 0:00:03]} 27. b4 {[%emt 0:00:03]} 1/2-1/2

[Event "IX Iberoamericano Championship 2023"]
[Site "Panama City"]
[Date "2023.11.27"]
[Round "3.9"]
[White "Roselli Mailhe, Bernardo"]
[Black "Espinosa Veloz, Ermes"]
[Result "0-1"]
[ECO "D59"]
[WhiteElo "2364"]
[BlackElo "2478"]
[Annotator "RC"]
[PlyCount "76"]
[EventDate "2023.11.27"]
[EventType "swiss"]
[EventCountry "PAN"]
[SourceTitle "playchess.com"]
[Source "ChessBase"]
[SourceQuality "1"]
[TimeControl "5400+30"]

1. d4 {[%emt 0:00:02]} d5 {[%emt 0:02:10]} 2. c4 {[%emt 0:00:06]} e6 {[%emt 0:00:06]} 3. Nc3 {[%emt 0:00:04]} Nf6 {[%emt 0:00:06]} 4. Bg5 {[%emt 0:00:04]} Be7 {[%emt 0:00:09]} 5. e3 {[%emt 0:00:12]} O-O {[%emt 0:00:23]} 6. Nf3 {[%emt 0:00:50]} h6 {[%emt 0:00:12]} 7. Bh4 {[%emt 0:00:04]} b6 {[%emt 0:00:05]} 8. cxd5 {[%emt 0:04:54]} Nxd5 {[%emt 0:00:15]} 9. Bxe7 {[%emt 0:00:06]} Qxe7 {[%emt 0:00:08]} 10. Nxd5 {[%emt 0:01:11]} exd5 {[%emt 0:00:09]} 11. Rc1 {[%emt 0:00:05]} Be6 {[%emt 0:00:06]} 12. Qa4 {[%emt 0:00:55]} c5 {[%emt 0:01:08]} 13. Qa3 {[%emt 0:01:09]} Rc8 {[%emt 0:00:10]} 14. Be2 {[%emt 0:01:01]} Qf8 {[%emt 0:00:26]} 15. dxc5 {[%emt 0:02:01]} bxc5 {[%emt 0:00:08]} 16. O-O {[%emt 0:07:29]} Nd7 {[%emt 0:01:50]} 17. Rc2 {[%emt 0:06:45]} Rcb8 {[%emt 0:10:23]} 18. Qa5 {[%emt 0:09:23]} Bf5 {[%emt 0:04:53]} 19. Rd2 {[%emt 0:00:14]} Nf6 {[%emt 0:00:08]} 20. b3 {[%emt 0:07:47]} Qd6 {[%emt 0:03:16]} 21. Bd3 {[%emt 0:07:42]} Bxd3 {[%emt 0:05:37]} 22. Rxd3 {[%emt 0:00:05]} Qb6 {[%emt 0:00:34]} 23. Qa4 {[%emt 0:06:26]} a5 {[%emt 0:04:07]} 24. Rc1 {[%emt 0:01:28]} Qa6 {[%emt 0:01:04]} 25. Rdd1 {[%emt 0:05:33]} Rb4 {[%emt 0:08:48]} 26. Qa3 {[%emt 0:00:12]} Qe2 {[%emt 0:04:15]} 27. Rd2 {[%emt 0:04:44]} Qb5 {[%emt 0:00:03]} 28. Rdc2 {[%emt 0:00:24]} Nd7 {[%emt 0:08:53]} 29. Rd1 {[%emt 0:00:43]} a4 {[%emt 0:00:20]} 30. Rxd5 {[%emt 0:15:35]} Qb7 {[%emt 0:01:12]} 31. Rxd7 {[%emt 0:04:05]} axb3 {[%emt 0:12:05]} 32. Qc1 {[%emt 0:08:09]} Qxd7 {[%emt 0:00:54]} 33. axb3 {[%emt 0:00:07]} Rxb3 {[%emt 0:01:17]} 34. Rxc5 {[%emt 0:01:44]} Qb7 {[%emt 0:10:08]} 35. Nd2 {[%emt 0:02:23]} Rba3 {[%emt 0:00:11]} 36. Nf1 {[%emt 0:01:50]} Ra1 {[%emt 0:00:08]} 37. Qc4 {[%emt 0:00:14]} Rd8 {[%emt 0:00:56]} 38. Rc7 {[%emt 0:00:59]} Rxf1+ {[%emt 0:00:44]} 0-1

[Event "IX Iberoamericano Championship 2023"]
[Site "Panama City"]
[Date "2023.11.27"]
[Round "3.10"]
[White "Esmeraldas Huachi, Anderson"]
[Black "Matamoros Franco, Carlos S."]
[Result "1/2-1/2"]
[ECO "A53"]
[WhiteElo "2120"]
[BlackElo "2455"]
[Annotator "RC"]
[PlyCount "26"]
[EventDate "2023.11.27"]
[EventType "swiss"]
[EventCountry "PAN"]
[SourceTitle "playchess.com"]
[Source "ChessBase"]
[SourceQuality "1"]
[TimeControl "5400+30"]

1. d4 {[%emt 0:03:32]} Nf6 {[%emt 0:00:15]} 2. c4 {[%emt 0:00:10]} d6 {[%emt 0:00:48]} 3. Nc3 {[%emt 0:05:08]} Nbd7 {[%emt 0:00:17]} 4. e4 {[%emt 0:01:21]} e5 {[%emt 0:00:07]} 5. d5 {[%emt 0:00:03]} Nc5 {[%emt 0:00:40]} 6. f3 {[%emt 0:00:19]} a5 {[%emt 0:00:35]} 7. Be3 {[%emt 0:00:14]} Be7 {[%emt 0:00:53]} 8. g4 {[%emt 0:07:19]} Nfd7 {[%emt 0:02:43]} 9. Nge2 {[%emt 0:00:47]} h5 {[%emt 0:12:13]} 10. gxh5 {[%emt 0:04:25]} Bh4+ {[%emt 0:06:25]} 11. Ng3 {[%emt 0:00:15]} Nf6 {[%emt 0:00:20]} 12. h6 {[%emt 0:04:31]} g5 {[%emt 0:20:44]} 13. Qd2 {[%emt 0:06:25]} Rxh6 {[%emt 0:11:01]} 1/2-1/2

[Event "IX Iberoamericano Championship 2023"]
[Site "Panama City"]
[Date "2023.11.27"]
[Round "3.11"]
[White "Zambrana, Osvaldo"]
[Black "Cabezas Solano, David Alejandro"]
[Result "1-0"]
[ECO "B96"]
[WhiteElo "2400"]
[BlackElo "2171"]
[Annotator "RC"]
[PlyCount "59"]
[EventDate "2023.11.27"]
[EventType "swiss"]
[EventCountry "PAN"]
[SourceTitle "playchess.com"]
[Source "ChessBase"]
[SourceQuality "1"]
[TimeControl "5400+30"]

1. e4 {[%emt 0:08:59]} c5 {[%emt 0:00:31]} 2. Nf3 {[%emt 0:00:13]} d6 {[%emt 0:00:06]} 3. d4 {[%emt 0:00:05]} cxd4 {[%emt 0:00:06]} 4. Nxd4 {[%emt 0:00:04]} Nf6 {[%emt 0:00:06]} 5. Nc3 {[%emt 0:00:04]} a6 {[%emt 0:00:13]} 6. Bg5 {[%emt 0:00:04]} e6 {[%emt 0:00:08]} 7. Qe2 {[%emt 0:00:13]} Nbd7 {[%emt 0:00:22]} 8. O-O-O {[%emt 0:00:09]} Qc7 {[%emt 0:00:28]} 9. f4 {[%emt 0:00:09]} b5 {[%emt 0:00:15]} 10. g4 {[%emt 0:00:27]} b4 {[%emt 0:00:33]} 11. Nd5 {[%emt 0:01:52]} exd5 {[%emt 0:00:25]} 12. exd5+ {[%emt 0:00:20]} Be7 {[%emt 0:00:08]} 13. Nc6 {[%emt 0:06:55]} Nb8 {[%emt 0:00:38]} 14. Bxf6 {[%emt 0:08:32]} gxf6 {[%emt 0:01:54]} 15. Bg2 {[%emt 0:00:47]} Nxc6 {[%emt 0:11:51]} 16. dxc6 {[%emt 0:00:05]} Ra7 {[%emt 0:07:02]} 17. f5 {[%emt 0:02:06]} a5 {[%emt 0:02:38]} 18. Bd5 {[%emt 0:00:33]} Kd8 {[%emt 0:06:05]} 19. Qe4 {[%emt 0:01:41]} Ba6 {[%emt 0:09:04]} 20. Qd4 {[%emt 0:14:42]} Rg8 {[%emt 0:10:08]} 21. Rhe1 {[%emt 0:02:19]} Bb5 {[%emt 0:18:06]} 22. Bxf7 {[%emt 0:24:25]} Rf8 {[%emt 0:00:48]} 23. Bd5 {[%emt 0:06:39]} Ra6 {[%emt 0:01:50]} 24. Re6 {[%emt 0:05:19]} Kc8 {[%emt 0:08:06]} 25. g5 {[%emt 0:04:54]} Qa7 {[%emt 0:10:03]} 26. Qe4 {[%emt 0:01:58]} Bd8 {[%emt 0:02:14]} 27. Rxd6 {[%emt 0:01:57]} Bc7 {[%emt 0:03:41]} 28. Qe7 {[%emt 0:00:38]} Bxd6 {[%emt 0:01:17]} 29. Be6+ {[%emt 0:00:08]} Kb8 {[%emt 0:00:59]} 30. Qxd6+ {[%emt 0:00:08]} 1-0

[Event "IX Iberoamericano Championship 2023"]
[Site "Panama City"]
[Date "2023.11.27"]
[Round "3.12"]
[White "Lombardo Batista, Elias"]
[Black "Mendez Machado, Andre"]
[Result "0-1"]
[ECO "A20"]
[WhiteElo "1755"]
[BlackElo "2096"]
[Annotator "RC"]
[PlyCount "51"]
[EventDate "2023.11.27"]
[EventType "swiss"]
[EventCountry "PAN"]
[SourceTitle "playchess.com"]
[Source "ChessBase"]
[SourceQuality "1"]
[TimeControl "5400+30"]

1. c4 {[%emt 0:00:10]} e5 {[%emt 0:00:03]} 2. g3 {[%emt 0:00:12]} Nf6 {[%emt 0:00:04]} 3. Bg2 {[%emt 0:00:18]} c6 {[%emt 0:00:03]} 4. d4 {[%emt 0:00:20]} e4 {[%emt 0:00:17]} 5. Nc3 {[%emt 0:00:30]} Bb4 {[%emt 0:00:04]} 6. Bg5 {[%emt 0:00:47]} d5 {[%emt 0:00:03]} 7. cxd5 {[%emt 0:00:52]} cxd5 {[%emt 0:00:04]} 8. Qb3 {[%emt 0:01:26]} Bxc3+ {[%emt 0:02:21]} 9. bxc3 {[%emt 0:00:35]} Nbd7 {[%emt 0:03:00]} 10. Nh3 {[%emt 0:01:16]} h6 {[%emt 0:01:52]} 11. Bc1 {[%emt 0:04:54]} O-O {[%emt 0:02:34]} 12. Ba3 {[%emt 0:00:18]} Re8 {[%emt 0:00:04]} 13. e3 {[%emt 0:00:15]} Nb6 {[%emt 0:00:40]} 14. Nf4 {[%emt 0:05:14]} Nc4 {[%emt 0:10:15]} 15. h4 {[%emt 0:14:08]} Bg4 {[%emt 0:10:41]} 16. Bc1 {[%emt 0:01:45]} Qd7 {[%emt 0:07:18]} 17. Rb1 {[%emt 0:06:05]} b6 {[%emt 0:00:30]} 18. Qb5 {[%emt 0:00:30]} Qf5 {[%emt 0:08:09]} 19. Bh3 {[%emt 0:30:37]} Bxh3 {[%emt 0:01:40]} 20. Nxh3 {[%emt 0:00:30]} a6 {[%emt 0:00:30]} 21. Qb3 {[%emt 0:00:30]} Rec8 {[%emt 0:00:30]} 22. Nf4 {[%emt 0:00:30]} Rc6 {[%emt 0:00:30]} 23. Qd1 {[%emt 0:00:30]} Rac8 {[%emt 0:00:30]} 24. Rg1 {[%emt 0:00:30]} h5 {[%emt 0:00:30]} 25. Kf1 {[%emt 0:00:30]} Nd6 {[%emt 0:00:30]} 26. Nxh5 {[%emt 0:13:51]} 0-1

[Event "IX Iberoamericano Championship 2023"]
[Site "Panama City"]
[Date "2023.11.27"]
[Round "3.13"]
[White "Portal Ramos, Cristhian"]
[Black "Leal Escamilla, Daniel Zinedine"]
[Result "1-0"]
[ECO "C47"]
[WhiteElo "2085"]
[BlackElo "1748"]
[Annotator "RC"]
[PlyCount "76"]
[EventDate "2023.11.27"]
[EventType "swiss"]
[EventCountry "PAN"]
[SourceTitle "playchess.com"]
[Source "ChessBase"]
[SourceQuality "1"]
[TimeControl "5400+30"]

1. e4 {[%emt 0:00:11]} e5 {[%emt 0:00:16]} 2. Nf3 {[%emt 0:00:06]} Nc6 {[%emt 0:00:06]} 3. d4 {[%emt 0:00:08]} exd4 {[%emt 0:00:06]} 4. Nxd4 {[%emt 0:00:04]} Nf6 {[%emt 0:00:08]} 5. Nc3 {[%emt 0:00:09]} Bb4 {[%emt 0:00:07]} 6. Nxc6 {[%emt 0:00:43]} bxc6 {[%emt 0:00:06]} 7. Bd3 {[%emt 0:00:10]} O-O {[%emt 0:00:59]} 8. O-O {[%emt 0:00:38]} Re8 {[%emt 0:04:05]} 9. Qf3 {[%emt 0:17:44]} d5 {[%emt 0:04:41]} 10. exd5 {[%emt 0:00:49]} Bxc3 {[%emt 0:01:50]} 11. bxc3 {[%emt 0:00:14]} cxd5 {[%emt 0:00:21]} 12. Bg5 {[%emt 0:01:25]} c6 {[%emt 0:06:52]} 13. Rae1 {[%emt 0:02:24]} Be6 {[%emt 0:06:19]} 14. Qg3 {[%emt 0:09:39]} Kf8 {[%emt 0:15:50]} 15. Bxh7 {[%emt 0:04:47]} Qd7 {[%emt 0:28:38]} 16. Bxf6 {[%emt 0:12:53]} gxf6 {[%emt 0:00:10]} 17. Qh4 {[%emt 0:00:05]} Kg7 {[%emt 0:16:54]} 18. Re3 {[%emt 0:06:49]} Rh8 {[%emt 0:04:10]} 19. Rg3+ {[%emt 0:00:49]} Kf8 {[%emt 0:00:15]} 20. Qh6+ {[%emt 0:00:52]} Ke7 {[%emt 0:03:02]} 21. Rf3 {[%emt 0:02:12]} f5 {[%emt 0:03:57]} 22. Re1 {[%emt 0:03:15]} Qd6 {[%emt 0:01:58]} 23. Rxf5 {[%emt 0:01:20]} Kd7 {[%emt 0:00:31]} 24. Rg5 {[%emt 0:05:07]} Rab8 {[%emt 0:00:37]} 25. g3 {[%emt 0:00:27]} Qc5 {[%emt 0:00:25]} 26. Rg7 {[%emt 0:04:57]} Rhe8 {[%emt 0:00:35]} 27. Bf5 {[%emt 0:01:28]} Bxf5 {[%emt 0:00:30]} 28. Rxf7+ {[%emt 0:00:07]} Re7 {[%emt 0:00:25]} 29. Rfxe7+ {[%emt 0:01:12]} Qxe7 {[%emt 0:00:02]} 30. Rxe7+ {[%emt 0:00:09]} Kxe7 {[%emt 0:00:08]} 31. Qc1 {[%emt 0:01:19]} Ke6 {[%emt 0:00:33]} 32. f3 {[%emt 0:00:34]} c5 {[%emt 0:01:01]} 33. g4 {[%emt 0:00:04]} Bg6 {[%emt 0:00:23]} 34. Qe3+ {[%emt 0:00:29]} Kd7 {[%emt 0:00:15]} 35. Qxc5 {[%emt 0:00:12]} Rb1+ {[%emt 0:00:38]} 36. Kf2 {[%emt 0:00:10]} Rb2 {[%emt 0:00:04]} 37. Qxd5+ {[%emt 0:00:32]} Ke7 {[%emt 0:00:09]} 38. Qc5+ {[%emt 0:00:05]} Ke8 {[%emt 0:00:19]} 1-0

[Event "IX Iberoamericano Championship 2023"]
[Site "Panama City"]
[Date "2023.11.27"]
[Round "3.14"]
[White "Bogantes Robleto, Karina"]
[Black "Gonzalez Ochoa, Yoana"]
[Result "0-1"]
[ECO "E43"]
[WhiteElo "1739"]
[BlackElo "2085"]
[Annotator "RC"]
[PlyCount "102"]
[EventDate "2023.11.27"]
[EventType "swiss"]
[EventCountry "PAN"]
[SourceTitle "playchess.com"]
[Source "ChessBase"]
[SourceQuality "1"]
[TimeControl "5400+30"]

1. d4 {[%emt 0:04:26]} Nf6 {[%emt 0:00:31]} 2. c4 {[%emt 0:00:07]} e6 {[%emt 0:00:06]} 3. Nc3 {[%emt 0:00:07]} Bb4 {[%emt 0:00:17]} 4. e3 {[%emt 0:00:05]} O-O {[%emt 0:00:32]} 5. Bd3 {[%emt 0:00:13]} d5 {[%emt 0:01:03]} 6. a3 {[%emt 0:00:47]} Bxc3+ {[%emt 0:01:37]} 7. bxc3 {[%emt 0:00:06]} b6 {[%emt 0:00:07]} 8. Ne2 {[%emt 0:00:56]} Bb7 {[%emt 0:02:27]} 9. O-O {[%emt 0:04:03]} Nbd7 {[%emt 0:00:16]} 10. f3 {[%emt 0:03:21]} c5 {[%emt 0:00:37]} 11. cxd5 {[%emt 0:03:01]} exd5 {[%emt 0:00:14]} 12. Ng3 {[%emt 0:01:12]} Re8 {[%emt 0:01:00]} 13. Bd2 {[%emt 0:03:36]} Nf8 {[%emt 0:01:43]} 14. Qe1 {[%emt 0:04:26]} Ne6 {[%emt 0:02:13]} 15. Qf2 {[%emt 0:01:22]} Qd7 {[%emt 0:06:57]} 16. a4 {[%emt 0:03:03]} Bc6 {[%emt 0:01:19]} 17. a5 {[%emt 0:04:01]} Bb5 {[%emt 0:03:39]} 18. Bxb5 {[%emt 0:02:50]} Qxb5 {[%emt 0:00:14]} 19. Rfb1 {[%emt 0:00:15]} Qc6 {[%emt 0:00:17]} 20. Qf1 {[%emt 0:01:27]} c4 {[%emt 0:07:07]} 21. Qd1 {[%emt 0:01:51]} b5 {[%emt 0:01:43]} 22. Qc2 {[%emt 0:01:14]} Nc7 {[%emt 0:00:46]} 23. Re1 {[%emt 0:01:07]} h5 {[%emt 0:05:23]} 24. h4 {[%emt 0:08:11]} Qd6 {[%emt 0:06:00]} 25. Kf2 {[%emt 0:06:30]} g6 {[%emt 0:01:01]} 26. Ne2 {[%emt 0:09:34]} Rab8 {[%emt 0:00:47]} 27. Ng1 {[%emt 0:02:59]} Na6 {[%emt 0:01:02]} 28. Nh3 {[%emt 0:07:24]} b4 {[%emt 0:04:52]} 29. e4 {[%emt 0:02:49]} bxc3 {[%emt 0:03:23]} 30. Qxc3 {[%emt 0:09:28]} Rb3 {[%emt 0:01:10]} 31. e5 {[%emt 0:02:22]} Qb8 {[%emt 0:06:09]} 32. Qc1 {[%emt 0:01:42]} Nh7 {[%emt 0:00:53]} 33. Kg1 {[%emt 0:03:38]} Nf8 {[%emt 0:01:13]} 34. Ng5 {[%emt 0:02:00]} Nb4 {[%emt 0:06:22]} 35. Bxb4 {[%emt 0:00:26]} Qxb4 {[%emt 0:00:07]} 36. Qf4 {[%emt 0:00:09]} Qe7 {[%emt 0:01:06]} 37. Qf6 {[%emt 0:01:31]} Ne6 {[%emt 0:01:41]} 38. Nxe6 {[%emt 0:01:24]} Qxf6 {[%emt 0:02:27]} 39. exf6 {[%emt 0:00:17]} fxe6 {[%emt 0:00:10]} 40. Rab1 {[%emt 0:00:33]} Reb8 {[%emt 0:01:34]} 41. Rxb3 {[%emt 0:00:36]} cxb3 {[%emt 0:00:02]} 42. Rb1 {[%emt 0:00:46]} Kf7 {[%emt 0:00:10]} 43. Kf2 {[%emt 0:00:04]} Kxf6 {[%emt 0:00:06]} 44. Ke3 {[%emt 0:00:05]} Kf5 {[%emt 0:00:27]} 45. g3 {[%emt 0:00:11]} b2 {[%emt 0:02:00]} 46. Kd2 {[%emt 0:00:59]} Rb3 {[%emt 0:00:49]} 47. Ke2 {[%emt 0:00:22]} a6 {[%emt 0:01:26]} 48. Kf2 {[%emt 0:00:19]} e5 {[%emt 0:00:05]} 49. dxe5 {[%emt 0:00:15]} Kxe5 {[%emt 0:00:02]} 50. Ke2 {[%emt 0:00:36]} Kd4 {[%emt 0:00:06]} 51. g4 {[%emt 0:00:40]} Ke5 {[%emt 0:30:42]} 0-1